bitfinex-derivatives/quotes_BTCF0:USTF0_20241003
["timestamp","ask_amount","ask_price","bid_price","bid_amount"]
[1727948890288,0.082323,60739.0,60738.0,0.56814241]
[1727948890991,0.082323,60739.0,60738.0,0.67727416]
[1727948891484,0.082323,60739.0,60738.0,0.77426884]
[1727948891687,0.00246978,60747.0,60738.0,0.67727416]
[1727948891891,0.082316,60744.0,60743.0,0.08085454]
[1727948892184,0.082316,60744.0,60743.0,1.2463206]
[1727948892581,0.082316,60744.0,60743.0,0.2063206]
[1727948893092,0.272316,60744.0,60743.0,0.08085454]
[1727948893283,0.272316,60744.0,60740.0,0.08085454]
[1727948893478,0.08232,60741.0,60740.0,0.08085454]
[1727948893784,0.082318,60743.0,60740.0,0.08087421]
[1727948894094,0.08232,60741.0,60740.0,0.08087421]
[1727948894401,0.08232,60741.0,60740.0,0.20634821]
[1727948895181,0.08332,60741.0,60740.0,0.20634821]
[1727948895988,0.08332,60741.0,60740.0,0.20637949]
[1727948896291,0.57724,60741.0,60740.0,0.20638613]
[1727948896483,0.08332,60741.0,60740.0,0.20638613]
[1727948896679,0.08332,60741.0,60740.0,0.125474]
[1727948898188,0.082323,60739.0,60738.0,0.3608]
[1727948899589,0.082323,60739.0,60738.0,0.3618]
[1727948900795,0.082323,60739.0,60738.0,0.5518]
[1727948901388,0.082323,60739.0,60738.0,1.5918]
[1727948903595,0.082323,60739.0,60738.0,1.4018]
[1727948904095,0.082323,60739.0,60738.0,0.3618]
[1727948905094,0.082323,60739.0,60738.0,0.3738]
[1727948905296,0.082323,60739.0,60738.0,0.3858]
[1727948905799,0.082323,60739.0,60738.0,0.3668]
[1727948906100,0.082323,60739.0,60738.0,0.4394991]
[1727948906292,0.082323,60739.0,60738.0,0.3748]
[1727948906497,0.082323,60739.0,60738.0,0.43948438]
[1727948906899,0.082323,60739.0,60738.0,0.3748]
[1727948907093,0.082323,60739.0,60738.0,0.43950355]
[1727948907398,0.082323,60739.0,60738.0,0.439508]
[1727948907788,0.082323,60739.0,60738.0,0.3688]
[1727948907985,0.082323,60739.0,60738.0,0.3748]
[1727948908393,0.082323,60739.0,60738.0,0.3728]
[1727948908986,0.082323,60739.0,60738.0,0.3658]
[1727948909193,0.082323,60739.0,60738.0,0.3798]
[1727948909599,0.082323,60739.0,60738.0,0.43550592]
[1727948909791,0.082323,60739.0,60738.0,0.44150592]
[1727948910600,0.082323,60739.0,60738.0,0.43150592]
[1727948910806,0.082323,60739.0,60738.0,0.43950592]
[1727948911198,0.082323,60739.0,60738.0,0.3748]
[1727948911502,0.082323,60739.0,60738.0,0.3758]
[1727948911903,0.082323,60739.0,60738.0,0.3698]
[1727948912200,1.176243,60739.0,60738.0,0.07972256]
[1727948912506,0.082331,60733.0,60732.0,0.0038]
[1727948912801,0.082341,60726.0,60725.0,0.0038]
[1727948912996,0.082331,60733.0,60715.0,1.0482]
[1727948912997,0.08235,60719.0,60718.0,0.0038]
[1727948913197,0.08235,60719.0,60715.0,1.04084]
[1727948913400,0.0038,60726.0,60718.0,0.272352]
[1727948913704,0.082345,60723.0,60722.0,0.19]
[1727948913902,0.0038,60730.0,60722.0,0.19]
[1727948914203,0.0038,60730.0,60715.0,1.06896046]
[1727948914204,0.082336,60730.0,60729.0,0.5508]
[1727948914406,0.0038,60733.0,60729.0,0.5508]
[1727948914407,0.082332,60733.0,60729.0,0.5508]
[1727948914794,0.082332,60733.0,60732.0,0.008]
[1727948914992,0.083332,60733.0,60732.0,0.008]
[1727948915608,0.001,60730.0,60729.0,0.5618]
[1727948916302,0.083332,60733.0,60732.0,0.008]
[1727948916803,0.083332,60733.0,60732.0,1.048]
[1727948918295,0.082332,60733.0,60732.0,1.04]
[1727948918693,0.083332,60733.0,60732.0,1.052]
[1727948918907,0.084332,60733.0,60732.0,1.063]
[1727948919795,0.084332,60733.0,60732.0,0.023]
[1727948920501,0.082323,60739.0,60732.0,0.30121164]
[1727948920703,0.082323,60739.0,60738.0,0.08082941]
[1727948921094,0.082324,60738.0,60737.0,0.08082941]
[1727948921317,0.082324,60738.0,60737.0,0.20631135]
[1727948922106,0.082324,60738.0,60737.0,0.20629061]
[1727948922609,0.082324,60738.0,60737.0,0.13148194]
[1727948923202,0.082324,60738.0,60737.0,0.32148194]
[1727948923711,0.082324,60738.0,60737.0,0.32048194]
[1727948924308,0.082324,60738.0,60737.0,0.30648194]
[1727948924611,0.082324,60738.0,60737.0,0.32047675]
[1727948924811,0.082324,60738.0,60737.0,0.32747675]
[1727948925201,0.082324,60738.0,60737.0,0.32247675]
[1727948925405,0.082324,60738.0,60737.0,0.32747675]
[1727948925605,0.082324,60738.0,60737.0,0.32047675]
[1727948925806,0.082324,60738.0,60737.0,0.32647675]
[1727948926419,0.082324,60738.0,60737.0,0.32147675]
[1727948926611,0.083324,60738.0,60737.0,0.32947675]
[1727948926910,0.083324,60738.0,60737.0,0.32347675]
[1727948927119,0.083324,60738.0,60737.0,0.33047675]
[1727948927411,0.083324,60738.0,60737.0,0.14047675]
[1727948928111,0.001,60738.0,60737.0,0.42740294]
[1727948928417,0.001,60738.0,60737.0,0.205]
[1727948929010,0.083324,60738.0,60737.0,0.205]
[1727948931719,0.083324,60738.0,60737.0,0.015]
[1727948932219,0.273324,60738.0,60737.0,0.015]
[1727948933711,0.29759559,60738.0,60737.0,0.015]
[1727948935018,1.39151559,60738.0,60737.0,0.015]
[1727948936119,0.273324,60738.0,60737.0,0.015]
[1727948937620,0.083324,60738.0,60737.0,0.015]
[1727948940523,1.177244,60738.0,60737.0,0.015]
[1727948941120,1.177244,60738.0,60730.0,0.0039]
[1727948941422,1.177244,60738.0,60701.0,0.61435774]
[1727948941423,0.082335,60730.0,60725.0,0.0039]
[1727948941625,0.082342,60725.0,60724.0,0.00247025]
[1727948942212,0.082349,60720.0,60719.0,0.3608]
[1727948943126,0.082349,60720.0,60719.0,0.48630761]
[1727948943533,0.082343,60724.0,60719.0,0.5832169]
[1727948943720,0.001,60725.0,60723.0,0.19]
[1727948944023,0.001,60725.0,60724.0,0.12550761]
[1727948944226,0.19,60740.0,60724.0,0.2224169]
[1727948944427,0.082319,60742.0,60729.0,0.19]
[1727948944630,0.082336,60730.0,60729.0,0.19]
[1727948944824,0.082336,60730.0,60729.0,0.27071665]
[1727948945526,0.082336,60730.0,60729.0,0.3962035]
[1727948946934,0.082336,60730.0,60729.0,0.4082035]
[1727948946935,0.083336,60730.0,60729.0,0.4082035]
[1727948947130,0.083336,60730.0,60729.0,0.32748651]
[1727948947428,0.082329,60735.0,60729.0,1.42148651]
[1727948947621,0.001,60730.0,60729.0,0.024]
[1727948947819,0.002,60730.0,60729.0,0.90320784]
[1727948948026,0.002,60730.0,60729.0,2.43720784]
[1727948948626,0.002,60730.0,60729.0,2.62720784]
[1727948948822,0.002,60730.0,60729.0,1.3804788]
[1727948949228,0.002,60730.0,60729.0,1.47728362]
[1727948949436,0.002,60730.0,60729.0,1.7402788]
[1727948949736,0.002,60730.0,60729.0,1.89300428]
[1727948949935,0.002,60730.0,60729.0,1.7412788]
[1727948950437,0.272316,60745.0,60729.0,1.89400399]
[1727948950637,0.0038,60738.0,60737.0,0.08066868]
[1727948950935,0.0038,60738.0,60737.0,0.20614748]
[1727948950936,0.082324,60738.0,60737.0,0.20614748]
[1727948951947,0.082324,60738.0,60737.0,0.1254788]
[1727948952431,0.082324,60738.0,60737.0,0.20613023]
[1727948953231,0.084324,60738.0,60737.0,0.09565143]
[1727948953728,0.084324,60738.0,60737.0,0.015]
[1727948954437,0.274324,60738.0,60737.0,0.015]
[1727948955952,0.768244,60738.0,60737.0,0.015]
[1727948956129,0.082334,60731.0,60730.0,0.0038]
[1727948956330,0.082342,60725.0,60724.0,0.08312156]
[1727948956535,0.082342,60725.0,60724.0,0.00247013]
[1727948957038,0.082342,60725.0,60724.0,0.19247013]
[1727948957230,0.082338,60729.0,60724.0,0.31797369]
[1727948957439,0.084334,60731.0,60730.0,0.014]
[1727948958733,0.083334,60731.0,60730.0,0.014]
[1727948958929,0.082337,60729.0,60728.0,0.19]
[1727948960443,0.083337,60729.0,60728.0,0.196]
[1727948960833,0.083337,60729.0,60728.0,0.19]
[1727948961036,0.084337,60729.0,60728.0,0.199]
[1727948961842,0.084337,60729.0,60728.0,0.009]
[1727948962433,0.083337,60729.0,60728.0,0.009]
[1727948962635,0.084337,60729.0,60728.0,0.013]
[1727948962948,0.084337,60729.0,60728.0,0.007]
[1727948964137,0.082342,60725.0,60724.0,0.00247013]
[1727948965134,0.082342,60725.0,60724.0,0.36327013]
[1727948965339,0.14879982,60726.0,60724.0,0.4887659]
[1727948965638,0.14879982,60726.0,60725.0,0.12549577]
[1727948966744,0.23214082,60726.0,60725.0,0.48629577]
[1727948967147,0.23214082,60726.0,60725.0,0.49329577]
[1727948967446,0.23214082,60726.0,60725.0,0.57405057]
[1727948967644,0.23214082,60726.0,60725.0,0.4485548]
[1727948968033,0.23214082,60726.0,60725.0,0.3678]
[1727948968237,0.23214082,60726.0,60725.0,0.4485548]
[1727948968739,0.23314082,60726.0,60725.0,0.4535548]
[1727948969244,0.23214082,60726.0,60725.0,0.4465548]
[1727948969548,0.23314082,60726.0,60725.0,0.4525548]
[1727948969748,0.23214082,60726.0,60725.0,0.4465548]
[1727948969953,0.23314082,60726.0,60725.0,0.3708]
[1727948970150,0.23214082,60726.0,60725.0,0.3658]
[1727948970340,0.23314082,60726.0,60725.0,0.3708]
[1727948970848,0.23314082,60726.0,60725.0,0.3658]
[1727948971148,0.23314082,60726.0,60725.0,0.3708]
[1727948972168,0.23314082,60726.0,60725.0,0.01]
[1727948972348,0.084341,60726.0,60725.0,0.01]
[1727948972647,0.083341,60726.0,60725.0,0.005]
[1727948972856,0.083341,60726.0,60725.0,0.01]
[1727948972857,0.084341,60726.0,60725.0,0.01]
[1727948978555,0.082352,60718.0,60716.0,0.3608]
[1727948978852,0.082361,60711.0,60710.0,0.0038]
[1727948979058,0.082365,60708.0,60707.0,0.3608]
[1727948979553,0.272365,60708.0,60707.0,0.3608]
[1727948980351,0.21566309,60708.0,60707.0,0.3688]
[1727948980551,0.273365,60708.0,60707.0,0.3688]
[1727948980755,0.273365,60708.0,60707.0,0.43342668]
[1727948980756,0.083365,60708.0,60707.0,0.43342668]
[1727948981454,0.084365,60708.0,60707.0,0.3688]
[1727948981757,0.084365,60708.0,60707.0,0.5588]
[1727948983061,0.084365,60708.0,60707.0,0.3688]
[1727948983250,0.084365,60708.0,60707.0,0.43338571]
[1727948983963,0.084365,60708.0,60707.0,0.3688]
[1727948984743,0.002,60708.0,60707.0,0.4495548]
[1727948985052,0.0038,60715.0,60712.0,0.08236]
[1727948985273,0.0038,60718.0,60714.0,0.27068571]
[1727948985447,0.082346,60722.0,60717.0,0.19]
[1727948985657,0.082346,60722.0,60721.0,0.19]
[1727948985858,0.082341,60726.0,60721.0,0.19]
[1727948986068,0.082342,60725.0,60723.0,0.06454187]
[1727948986353,0.082343,60724.0,60723.0,0.06454187]
[1727948987156,0.082343,60724.0,60721.0,0.27069227]
[1727948987360,0.082343,60724.0,60722.0,0.20619105]
[1727948987556,0.082343,60724.0,60721.0,0.19]
[1727948987765,0.006,60726.0,60722.0,1.04]
[1727948987962,0.006,60726.0,60725.0,0.19]
[1727948988665,0.0038,60732.0,60725.0,0.19]
[1727948988865,0.082341,60726.0,60725.0,0.19]
[1727948989056,0.083341,60726.0,60725.0,0.004]
[1727948989668,0.084341,60726.0,60725.0,0.005]
[1727948989962,0.002,60726.0,60725.0,0.195]
[1727948991162,0.002,60726.0,60725.0,0.194]
[1727948992664,0.002,60726.0,60725.0,0.21748122]
[1727948992860,0.001,60726.0,60725.0,0.57828122]
[1727948993060,0.002,60726.0,60725.0,0.57828122]
[1727948995165,0.001,60726.0,60725.0,0.57828122]
[1727948995466,0.002,60726.0,60725.0,0.70376912]
[1727949000261,0.084341,60726.0,60725.0,0.51376912]
[1727949000469,0.083341,60726.0,60725.0,0.38828122]
[1727949000767,0.084341,60726.0,60725.0,0.38828122]
[1727949001174,0.083341,60726.0,60725.0,0.38428122]
[1727949001379,0.084341,60726.0,60725.0,0.38828122]
[1727949002873,0.083341,60726.0,60725.0,0.38428122]
[1727949003077,0.084341,60726.0,60725.0,0.38828122]
[1727949003479,0.083341,60726.0,60725.0,0.38428122]
[1727949003684,0.084341,60726.0,60725.0,0.57828122]
[1727949006780,0.084341,60726.0,60725.0,0.38828122]
[1727949008073,0.083341,60726.0,60725.0,0.38428122]
[1727949008272,0.084341,60726.0,60725.0,0.38828122]
[1727949010175,0.082341,60726.0,60725.0,0.38428122]
[1727949010379,0.084341,60726.0,60725.0,0.38828122]
[1727949010583,0.00247092,60731.0,60725.0,0.45290303]
[1727949010978,0.00247092,60731.0,60726.0,0.06462181]
[1727949011276,0.00247092,60731.0,60727.0,0.06462181]
[1727949011481,0.082338,60728.0,60727.0,0.06462181]
[1727949011980,0.082339,60727.0,60726.0,0.06462181]
[1727949012176,0.00347092,60731.0,60725.0,0.38828122]
[1727949012378,0.082341,60726.0,60725.0,0.38828122]
[1727949012777,0.082341,60726.0,60725.0,0.38428122]
[1727949012972,0.00447092,60731.0,60725.0,0.38928122]
[1727949013196,0.00447092,60731.0,60730.0,0.19]
[1727949013373,0.0039,60750.0,60730.0,0.67628421]
[1727949013572,0.082322,60740.0,60739.0,0.2708596]
[1727949013779,0.082322,60740.0,60739.0,0.31548421]
[1727949014981,0.082322,60740.0,60739.0,0.12548421]
[1727949015181,0.082322,60740.0,60731.0,1.04478]
[1727949015182,0.082323,60739.0,60738.0,0.08090407]
[1727949015385,0.082323,60739.0,60738.0,0.20637001]
[1727949015574,0.082323,60739.0,60738.0,0.08090407]
[1727949015783,0.082323,60739.0,60738.0,0.20637065]
[1727949016476,0.082323,60739.0,60738.0,0.08090407]
[1727949016878,0.084323,60739.0,60738.0,0.08090407]
[1727949017090,0.085323,60739.0,60738.0,0.08090407]
[1727949017287,0.085323,60739.0,60738.0,0.20636917]
[1727949017490,0.003,60739.0,60737.0,0.08090407]
[1727949017674,0.003,60739.0,60736.0,0.02343506]
[1727949017675,0.082326,60737.0,60736.0,0.02343506]
[1727949017880,0.003,60739.0,60732.0,0.19]
[1727949018488,0.08233,60734.0,60732.0,0.21352523]
[1727949019777,0.08233,60734.0,60733.0,0.7216]
[1727949020986,0.08333,60734.0,60733.0,0.7216]
[1727949021185,0.08333,60734.0,60733.0,0.7246]
[1727949022592,0.08233,60734.0,60733.0,0.7246]
[1727949022895,0.08233,60734.0,60733.0,0.3658]
[1727949023987,0.08233,60734.0,60733.0,0.003]
[1727949024195,1.17629,60734.0,60733.0,0.005]
[1727949024385,1.17629,60734.0,60733.0,0.004]
[1727949024781,1.17629,60734.0,60726.0,0.02608521]
[1727949024782,1.17629,60734.0,60726.0,0.00246956]
[1727949024994,0.272339,60727.0,60726.0,0.00246956]
[1727949025384,1.366339,60727.0,60726.0,0.00246956]
[1727949025584,0.082349,60720.0,60719.0,0.3608]
[1727949027693,0.082349,60720.0,60719.0,0.3628]
[1727949027694,0.083349,60720.0,60719.0,0.3628]
[1727949028790,0.084349,60720.0,60719.0,0.3658]
[1727949029891,1.178429,60720.0,60719.0,0.005]
[1727949032187,0.082358,60713.0,60712.0,0.3608]
[1727949032383,0.19,60713.0,60705.0,0.3608]
[1727949032583,0.272368,60706.0,60705.0,0.3608]
[1727949033197,0.272368,60706.0,60705.0,0.40938352]
[1727949033398,0.272368,60706.0,60705.0,0.3608]
[1727949033894,0.273368,60706.0,60705.0,0.3648]
[1727949034298,0.273368,60706.0,60705.0,0.004]
[1727949035091,0.274368,60706.0,60705.0,0.004]
[1727949039601,0.264368,60706.0,60705.0,0.004]
[1727949041120,0.264368,60706.0,60700.0,0.3608]
[1727949041121,0.082375,60701.0,60700.0,0.3608]
[1727949041400,0.272375,60701.0,60700.0,0.3608]
[1727949041587,0.19,60701.0,60693.0,0.3608]
[1727949041786,0.272384,60694.0,60693.0,0.3608]
[1727949042909,0.082385,60693.0,60692.0,3.9e-07]
[1727949043106,0.576665,60693.0,60692.0,3.9e-07]
[1727949043404,1.176665,60693.0,60692.0,3.9e-07]
[1727949044805,0.082385,60693.0,60692.0,3.9e-07]
[1727949045303,0.576665,60693.0,60692.0,3.9e-07]
[1727949046802,0.082385,60693.0,60692.0,3.9e-07]
[1727949047000,0.576665,60693.0,60692.0,3.9e-07]
[1727949048302,1.176665,60693.0,60692.0,3.9e-07]
[1727949049721,0.082385,60693.0,60692.0,3.9e-07]
[1727949049908,1.176665,60693.0,60692.0,3.9e-07]
[1727949050101,0.082385,60693.0,60692.0,3.9e-07]
[1727949050403,1.176665,60693.0,60692.0,3.9e-07]
[1727949050706,0.082385,60693.0,60692.0,3.9e-07]
[1727949050911,0.682385,60693.0,60692.0,3.9e-07]
[1727949051132,0.576665,60693.0,60692.0,3.9e-07]
[1727949051296,1.176665,60693.0,60692.0,3.9e-07]
[1727949051702,0.576665,60693.0,60692.0,3.9e-07]
[1727949052606,0.082385,60693.0,60692.0,3.9e-07]
[1727949055709,0.04115669,60693.0,60692.0,3.9e-07]
[1727949057506,0.082387,60692.0,60691.0,9.1e-07]
[1727949057704,0.082387,60692.0,60688.0,0.06474869]
[1727949057911,0.082392,60688.0,60687.0,0.06474869]
[1727949058406,0.082396,60685.0,60684.0,1.12186407]
[1727949058609,0.19,60685.0,60684.0,1.12090407]
[1727949058811,0.19,60685.0,60684.0,1.04]
[1727949059209,0.19,60685.0,60684.0,1.12090407]
[1727949059406,0.19,60685.0,60684.0,1.16558868]
[1727949059809,0.272396,60685.0,60684.0,1.24683441]
[1727949060204,0.273396,60685.0,60684.0,1.16558868]
[1727949060410,0.083396,60685.0,60684.0,1.16558868]
[1727949060806,0.084396,60685.0,60684.0,1.16558868]
[1727949061507,0.084396,60685.0,60684.0,1.2626202]
[1727949062109,0.002,60685.0,60684.0,1.2626202]
[1727949062304,0.084396,60685.0,60684.0,1.16558868]
[1727949062804,0.084396,60685.0,60684.0,1.04]
[1727949063817,0.12475108,60685.0,60684.0,1.04]
[1727949064014,0.084396,60685.0,60684.0,1.04]
[1727949064322,0.084396,60685.0,60683.0,0.3608]
[1727949064323,0.23235599,60685.0,60683.0,0.3608]
[1727949064616,0.12275399,60684.0,60683.0,0.3608]
[1727949065015,0.082398,60684.0,60683.0,0.3608]
[1727949065213,0.082398,60684.0,60672.0,0.00247206]
[1727949065214,0.082407,60677.0,60672.0,0.00247206]
[1727949065415,0.272413,60673.0,60658.0,0.66230627]
[1727949065619,0.08243,60660.0,60659.0,1.04]
[1727949065819,0.08243,60660.0,60658.0,0.3608]
[1727949066005,0.08243,60660.0,60658.0,0.38405107]
[1727949067114,0.082424,60665.0,60658.0,0.38405107]
[1727949067308,0.19,60678.0,60661.0,0.19]
[1727949067609,0.08241,60675.0,60674.0,0.19]
[1727949067920,0.59108252,60684.0,60670.0,0.19]
[1727949067921,0.082408,60677.0,60670.0,0.19]
[1727949068318,0.082408,60677.0,60674.0,1.04]
[1727949068714,0.082408,60677.0,60674.0,1.23]
[1727949069323,0.001,60678.0,60674.0,1.23]
[1727949069719,0.001,60675.0,60674.0,1.23]
[1727949070116,0.001,60675.0,60674.0,2.32444]
[1727949070316,0.002,60677.0,60674.0,2.32444]
[1727949070510,0.002,60677.0,60674.0,1.23]
[1727949070928,0.082406,60678.0,60675.0,0.12559062]
[1727949071115,0.082406,60678.0,60676.0,0.12559062]
[1727949071316,0.082406,60678.0,60677.0,0.12559062]
[1727949071717,0.3608,60684.0,60677.0,0.12559062]
[1727949071916,0.3608,60684.0,60678.0,0.2232531]
[1727949072119,0.3608,60684.0,60679.0,0.12559062]
[1727949072318,0.082402,60681.0,60680.0,0.12559062]
[1727949073925,0.083402,60681.0,60680.0,0.12559062]
[1727949074128,0.084402,60681.0,60680.0,0.12559062]
[1727949074927,0.083402,60681.0,60680.0,0.12559062]
[1727949075131,0.084402,60681.0,60680.0,0.12559062]
[1727949075427,0.002,60681.0,60676.0,0.09766248]
[1727949075625,0.082407,60678.0,60677.0,0.12559228]
[1727949077233,0.19247266,60686.0,60677.0,0.73088374]
[1727949077234,0.0824,60683.0,60677.0,0.73088374]
[1727949077526,0.082398,60684.0,60683.0,0.19]
[1727949077728,0.082398,60684.0,60683.0,0.27845903]
[1727949077927,0.04035398,60684.0,60679.0,0.19]
[1727949078130,0.082403,60680.0,60679.0,0.19]
[1727949078337,0.12275698,60680.0,60679.0,0.19]
[1727949078825,0.12275698,60680.0,60675.0,0.19]
[1727949079031,0.001,60678.0,60675.0,0.19]
[1727949079344,0.04035588,60677.0,60675.0,0.19]
[1727949079635,0.001,60678.0,60675.0,1.28444]
[1727949079822,0.04035609,60677.0,60676.0,0.49444]
[1727949080126,0.001,60678.0,60676.0,1.09444]
[1727949080326,0.001,60678.0,60677.0,0.49444]
[1727949080521,0.04135507,60678.0,60677.0,0.49444]
[1727949080724,0.04135507,60678.0,60677.0,1.09444]
[1727949080921,0.00247266,60686.0,60681.0,0.082401]
[1727949081123,0.00247266,60686.0,60683.0,0.19]
[1727949081525,0.00247266,60686.0,60684.0,0.49436]
[1727949081833,0.00247266,60686.0,60685.0,0.49436]
[1727949082225,0.00247266,60686.0,60685.0,1.09436]
[1727949082624,0.00247266,60686.0,60685.0,0.49436]
[1727949082825,0.00347266,60686.0,60685.0,0.49436]
[1727949083033,0.00447266,60686.0,60685.0,0.49436]
[1727949083434,0.00347266,60686.0,60685.0,0.49436]
[1727949083632,0.00447266,60686.0,60685.0,0.49436]
[1727949084030,0.00347266,60686.0,60685.0,0.49436]
[1727949084242,0.00447266,60686.0,60685.0,0.49436]
[1727949084832,0.082396,60685.0,60684.0,0.02433798]
[1727949085134,0.082396,60685.0,60684.0,0.06501229]
[1727949085338,0.082396,60685.0,60683.0,0.06501229]
[1727949085726,0.002,60686.0,60683.0,0.06502637]
[1727949086037,0.002,60686.0,60681.0,0.06502637]
[1727949086336,0.001,60685.0,60676.0,0.46540179]
[1727949086539,0.001,60685.0,60682.0,0.06502638]
[1727949086735,0.082401,60682.0,60677.0,0.27136362]
[1727949087044,0.082401,60682.0,60681.0,0.19]
[1727949088434,0.082401,60682.0,60681.0,0.191]
[1727949089238,0.083401,60682.0,60681.0,0.191]
[1727949089639,0.084401,60682.0,60681.0,0.191]
[1727949089844,0.08485083,60698.0,60681.0,1.26936764]
[1727949090146,0.00247183,60698.0,60697.0,0.19]
[1727949090584,0.00247183,60698.0,60697.0,1.23]
[1727949090941,0.00247183,60698.0,60697.0,0.19]
[1727949091146,0.00347183,60698.0,60697.0,0.19]
[1727949091439,0.00347183,60698.0,60697.0,1.23]
[1727949091640,0.08985083,60698.0,60697.0,1.04]
[1727949092336,0.090379,60698.0,60697.0,1.04]
[1727949092536,0.090379,60698.0,60690.0,0.19]
[1727949092537,0.082385,60694.0,60690.0,0.19]
[1727949092738,0.082386,60693.0,60689.0,0.06497274]
[1727949093041,0.082386,60693.0,60690.0,1.04]
[1727949093939,0.082386,60693.0,60690.0,1.043]
[1727949094440,0.082386,60693.0,60690.0,1.044]
[1727949094952,0.36327159,60706.0,60691.0,0.49432]
[1727949095242,0.36327159,60706.0,60704.0,0.19]
[1727949096034,0.00247159,60706.0,60704.0,0.19]
[1727949096540,0.08483959,60706.0,60700.0,0.5508]
[1727949096937,0.10783959,60706.0,60700.0,0.5508]
[1727949097733,0.09483959,60706.0,60700.0,0.57426928]
[1727949097940,0.100368,60706.0,60700.0,0.57426928]
[1727949098434,0.096368,60706.0,60700.0,0.57426928]
[1727949099545,0.096368,60706.0,60704.0,0.19]
[1727949100852,0.082369,60705.0,60704.0,0.19]
[1727949101147,0.12270886,60705.0,60704.0,0.19]
[1727949101333,0.17327213,60705.0,60704.0,0.19]
[1727949102844,0.19627213,60705.0,60704.0,0.19]
[1727949107652,0.19627362,60705.0,60704.0,0.19]
[1727949107839,0.19627362,60705.0,60700.0,0.57426928]
[1727949108035,0.023,60705.0,60700.0,0.57426928]
[1727949108241,0.082373,60702.0,60700.0,0.57426928]
[1727949108838,0.082373,60702.0,60700.0,0.21346928]
[1727949109043,0.082373,60702.0,60700.0,0.57426928]
[1727949110342,0.082373,60702.0,60700.0,0.21346928]
[1727949110646,0.088373,60702.0,60700.0,0.57426928]
[1727949110950,0.096373,60702.0,60700.0,0.21346928]
[1727949111155,0.096373,60702.0,60700.0,0.57426928]
[1727949114040,0.096373,60702.0,60700.0,0.21346928]
[1727949114247,0.096373,60702.0,60700.0,0.57426928]
[1727949114744,0.096373,60702.0,60700.0,0.21346928]
[1727949114940,0.096373,60702.0,60700.0,0.57426928]
[1727949115549,0.014,60702.0,60700.0,0.57426928]
[1727949115952,0.09090404,60701.0,60700.0,0.57426928]
[1727949116747,0.09090404,60701.0,60700.0,0.21346928]
[1727949117042,0.09090381,60701.0,60700.0,0.57426928]
[1727949117242,0.09690381,60701.0,60700.0,0.21346928]
[1727949117442,0.10490381,60701.0,60700.0,0.57426928]
[1727949119442,0.10490381,60701.0,60700.0,0.59336928]
[1727949119851,0.18727881,60701.0,60700.0,0.59336928]
[1727949120748,0.096375,60701.0,60700.0,0.59336928]
[1727949120954,0.18727971,60701.0,60700.0,0.59336928]
[1727949122954,0.03867772,60701.0,60700.0,0.87170216]
[1727949123151,0.08237,60705.0,60700.0,0.87170216]
[1727949123359,0.08237,60705.0,60704.0,0.19]
[1727949123552,0.08237,60705.0,60704.0,0.3155328]
[1727949123947,0.00126538,60708.0,60704.0,0.3155328]
[1727949124255,0.082366,60707.0,60706.0,0.09760254]
[1727949124452,0.082366,60707.0,60706.0,0.1255328]
[1727949124947,0.082366,60707.0,60706.0,0.12552687]
[1727949125556,0.082366,60707.0,60706.0,0.27831442]
[1727949126157,0.108366,60707.0,60706.0,0.28031442]
[1727949127559,0.108366,60707.0,60706.0,0.48832687]
[1727949128352,0.108366,60707.0,60706.0,0.64111442]
[1727949128946,0.108366,60707.0,60706.0,0.28031442]
[1727949130562,0.026,60707.0,60706.0,0.28031432]
[1727949130755,0.3608,60717.0,60706.0,0.28848785]
[1727949131058,0.443153,60717.0,60716.0,0.19]
[1727949131255,0.53404593,60717.0,60716.0,1.23]
[1727949131656,0.59312215,60717.0,60716.0,0.19]
[1727949132260,0.082357,60714.0,60713.0,0.19]
[1727949132559,0.26340996,60714.0,60713.0,0.19]
[1727949132964,0.17324993,60714.0,60713.0,0.19]
[1727949133470,0.17324993,60714.0,60713.0,0.193]
[1727949133756,0.17324993,60714.0,60713.0,0.003]
[1727949133961,0.35430289,60714.0,60713.0,0.003]
[1727949134163,0.17325389,60714.0,60713.0,0.003]
[1727949134359,0.36325389,60714.0,60713.0,0.007]
[1727949134562,0.082372,60703.0,60702.0,0.0038]
[1727949134862,0.082372,60703.0,60679.0,0.544084]
[1727949134863,0.082375,60701.0,60692.0,0.0038]
[1727949135059,0.12271209,60701.0,60694.0,1.4008]
[1727949135364,0.17327189,60701.0,60694.0,1.4008]
[1727949136359,0.17327189,60701.0,60700.0,0.0281]
[1727949136765,0.17427189,60701.0,60700.0,0.0301]
[1727949136967,0.17427189,60701.0,60700.0,0.0381]
[1727949137551,0.17327189,60701.0,60700.0,0.0371]
[1727949137960,0.082375,60701.0,60700.0,0.0371]
[1727949138467,0.083375,60701.0,60700.0,0.0371]
[1727949139473,0.083375,60701.0,60700.0,0.0291]
[1727949139662,0.084375,60701.0,60700.0,0.0351]
[1727949140168,0.081875,60701.0,60700.0,0.0351]
[1727949140464,0.080875,60701.0,60700.0,0.0261]
[1727949140668,0.081875,60701.0,60700.0,0.0351]
[1727949141367,0.081875,60701.0,60700.0,0.0341]
[1727949141869,0.081875,60701.0,60700.0,0.0351]
[1727949142363,0.081875,60701.0,60700.0,0.0271]
[1727949142669,0.081875,60701.0,60700.0,0.0351]
[1727949142868,0.081875,60701.0,60700.0,0.0371]
[1727949143196,0.081875,60701.0,60700.0,0.0361]
[1727949143568,0.080875,60701.0,60700.0,0.0261]
[1727949143763,0.081875,60701.0,60700.0,0.0341]
[1727949145073,0.081875,60701.0,60700.0,0.0351]
[1727949145670,0.081875,60701.0,60700.0,0.0341]
[1727949146068,0.12221879,60701.0,60700.0,0.0341]
[1727949146569,0.081875,60701.0,60700.0,0.0341]